fUST/lending_fUST_20260423
["ID","MTS","AMOUNT","RATE_DAILY","PERIOD"]
[421001484,1776895842379,-645.0,0.00017036,2]
[421001485,1776895842388,-2206.0,0.00017036,2]
[421001486,1776895842399,-184.0,0.00017036,2]
[421001487,1776895842409,-441.0,0.00017036,2]
[421001488,1776895842418,-155.0,0.00017052,2]
[421001489,1776895842427,-2179.23489672,0.00017054,2]
[421001496,1776895846789,-4889.14736678,7.778e-05,2]
[421001497,1776895846799,-194.2139597,9.922e-05,2]
[421001498,1776895846808,-194.2139597,0.00012086,2]
[421001499,1776895846817,-194.2139597,0.00014251,2]
[421001500,1776895846826,-451.374349,0.00015291,2]
[421001501,1776895846836,-451.374349,0.00016699,2]
[421001502,1776895846845,-451.374349,0.00016699,2]
[421001503,1776895846855,-3708.76510328,0.00017054,2]
[421001504,1776895846864,-151.0,0.00017054,2]
[421001505,1776895846873,-151.0,0.00017054,2]
[421001506,1776895846882,-151.0,0.00017054,2]
[421001507,1776895846891,-298.941081,0.00017054,2]
[421001508,1776895846900,-298.941081,0.00017054,2]
[421001509,1776895846910,-298.941081,0.00017054,2]
[421001510,1776895846919,-298.941081,0.00017054,2]
[421001511,1776895846928,-151.0,0.00017054,2]
[421001512,1776895846937,-151.0,0.00017054,2]
[421001513,1776895846947,-215.481544,0.00017054,2]
[421001514,1776895846957,-451.374349,0.00017054,2]
[421001515,1776895846967,-451.374349,0.00017054,2]
[421001516,1776895846976,-451.374349,0.00017054,2]
[421001517,1776895846986,-451.374349,0.00017054,2]
[421001518,1776895846995,-151.0,0.0001707,2]
[421001519,1776895847004,-151.0,0.0001707,2]
[421001520,1776895847014,-151.0,0.0001707,2]
[421001521,1776895847023,-151.0,0.0001707,2]
[421001522,1776895847032,-151.0,0.0001707,2]
[421001523,1776895847042,-245.217295,0.0001707,2]
[421001524,1776895847051,-151.0,0.0001707,2]
[421001525,1776895847061,-230.425797,0.0001707,2]
[421001526,1776895847070,-763.335204,0.0001707,2]
[421001527,1776895847079,-763.335204,0.0001707,2]
[421001528,1776895847089,-763.335204,0.0001707,2]
[421001529,1776895847098,-763.335204,0.0001707,2]
[421001530,1776895847107,-5888.0,0.0001707,2]
[421001531,1776895847116,-2752.92576751,0.00017108,2]
[421001536,1776896688984,787.64479181,0.0002368,120]
[421001539,1776896790135,-910.62176664,6.736e-05,2]
[421001541,1776896965107,-1728.43983572,6.602e-05,10]
[421001542,1776896965133,-2708.93509885,6.669e-05,10]
[421001562,1776897032712,-5000.0,6.536e-05,2]
[421001563,1776897032721,-1949.77466071,6.602e-05,2]
[421001564,1776897032731,-150.0,6.77e-05,2]
[421001565,1776897032739,-177.0,8.77e-05,2]
[421001566,1776897032749,-552.0,0.00010769,2]
[421001567,1776897032758,-204.0,0.0001077,2]
[421001568,1776897032767,-231.0,0.0001277,2]
[421001569,1776897032776,-1000.00000007,0.00013424,2]
[421001570,1776897032785,-2027.0533749,0.00013436,2]
[421001571,1776897032794,-1000.0,0.00013699,2]
[421001572,1776897032803,-206.7825312,0.00013726,2]
[421001573,1776897032812,-2150.738,0.00013806,2]
[421001574,1776897032821,-1109.9093916,0.00014354,2]
[421001575,1776897032830,-260.92527564,0.00014424,2]
[421001576,1776897032839,-190.99941487,0.0001477,2]
[421001592,1776897038905,-67.00058513,0.0001477,2]
[421001593,1776897038914,-198.07500678,0.00014783,2]
[421001594,1776897038923,-645.0,0.00014995,2]
[421001595,1776897038933,-441.0,0.00014995,2]
[421001596,1776897038942,-555.0,0.00014995,2]
[421001597,1776897038951,-184.0,0.00014995,2]
[421001598,1776897038960,-240.96550744,0.00015639,2]
[421001599,1776897038969,-1243.045333,0.00015708,2]
[421001600,1776897038980,-63.7224934,0.00015708,2]
[421001601,1776897038989,-240.96550744,0.00015827,7]
[421001602,1776897038998,-179.9640072,0.00015846,2]
[421001603,1776897039008,-240.96550744,0.00016015,7]
[421001604,1776897039017,-240.96550744,0.00016203,14]
[421001605,1776897039026,-439.0,0.0001629,2]
[421001606,1776897039036,-254.0,0.0001629,2]
[421001607,1776897039044,-133.1638589,0.0001629,2]
[421001608,1776897039056,-305.8361411,0.0001629,2]
[421001609,1776897039065,-889.0,0.0001629,2]
[421001610,1776897039075,-485.0,0.0001629,2]
[421001611,1776897039084,-153.0,0.0001629,2]
[421001612,1776897039093,-155.0,0.0001629,2]
[421001613,1776897039102,-1042.65740146,0.00016366,2]
[421001614,1776897039111,-240.96550744,0.00016391,14]
[421001615,1776897039120,-451.09,0.00016415,2]
[421001616,1776897039129,-240.96550744,0.0001658,30]
[421001617,1776897039138,-240.96550744,0.00016768,30]
[421001618,1776897039147,-285.0,0.0001677,2]
[421001619,1776897039156,-500.0,0.00016925,2]
[421001620,1776897039166,-500.0,0.00016925,2]
[421001621,1776897039175,-500.0,0.00016925,2]
[421001622,1776897039185,-500.0,0.00016925,2]
[421001623,1776897039194,-333.44455121,0.00016925,2]
[421001624,1776897039203,-500.0,0.00016925,2]
[421001625,1776897039213,-500.0,0.00016925,2]
[421001626,1776897039222,-500.0,0.00016925,2]
[421001627,1776897039231,-500.0,0.00016925,2]
[421001628,1776897039240,-500.0,0.00016925,2]
[421001629,1776897039250,-500.0,0.00016925,2]
[421001630,1776897039259,-500.0,0.00016925,2]
[421001631,1776897039268,-500.0,0.00016925,2]
[421001632,1776897039278,-500.0,0.00016925,2]
[421001633,1776897039287,-500.0,0.00016925,2]
[421001634,1776897039296,-500.0,0.00016925,2]
[421001635,1776897039305,-500.0,0.00016925,2]
[421001636,1776897039314,-500.0,0.00016925,2]
[421001637,1776897039323,-500.0,0.00016925,2]
[421001638,1776897039332,-500.0,0.00016925,2]
[421001639,1776897039341,-500.0,0.00016925,2]
[421001640,1776897039350,-182.21774351,0.00016925,2]
[421001641,1776897039359,-317.00657391,0.00016925,2]
[421001642,1776897039369,-21642.67463099,0.00016926,2]
[421001663,1776897043754,-741.48,0.00016926,2]
[421001679,1776897047694,-102021.6938058,0.00016926,2]
[421001680,1776897047706,-1260.13155678,0.00016926,2]
[421001703,1776898011102,-1390.01130854,7.325e-05,2]
[421001709,1776898157087,-303.71019505,7.179e-05,2]
[421001710,1776898157110,-5000.0,7.252e-05,2]
[421001711,1776898157133,-150.0,7.289e-05,2]
[421001712,1776898157154,-166.7359115,7.78e-05,2]
[421001713,1776898157177,-177.0,9.289e-05,2]
[421001714,1776898157198,-88.77018138,0.0001,2]
[421001768,1776898231938,-355.71045177,9.9e-05,2]
[421001771,1776898231950,-4644.28954823,9.9e-05,2]
[421001773,1776898231960,-411.22981862,0.0001,2]
[421001775,1776898231969,-85.51987613,0.00011289,2]
[421001777,1776898231985,-118.48012387,0.00011289,2]
[421001779,1776898231995,-215.97910669,0.00012,2]
[421001879,1776898238057,-284.02089331,0.00012,2]
[421001880,1776898238067,-231.0,0.00013289,2]
[421001881,1776898238077,-1022.1447,0.00013699,2]
[421001882,1776898238088,-1000.0,0.00013699,2]
[421001883,1776898238098,-500.0,0.00014,2]
[421001884,1776898238107,-1409.0,0.00014877,2]
[421001885,1776898238117,-645.0,0.00014877,2]
[421001886,1776898238126,-250.0,0.00014877,2]
[421001887,1776898238136,-232.597,0.00014877,2]
[421001888,1776898238145,-210.775,0.00014877,2]
[421001889,1776898238155,-258.0,0.00015289,2]
[421001890,1776898238165,-5888.0,0.00016097,2]
[421001891,1776898238175,-3473.74877012,0.00016111,2]
[421001892,1776898238187,-2414.25122988,0.00016111,2]
[421001893,1776898238197,-43519.44036841,0.00016113,2]
[421001894,1776898238209,-3049.29593742,0.00016113,2]
[421001895,1776898238221,-1930.4405746,0.00016113,2]
[421001896,1776898238232,-811.51114452,0.00016113,2]
[421001897,1776898238245,-1856.86616958,0.00016113,2]
[421001916,1776898243144,-5041.46100136,0.00016113,2]
[421001919,1776898243158,-3515.91090788,0.00016113,2]
[421001924,1776898243198,-1372.56330807,0.00016113,2]
[421001926,1776898243209,-3043.89712044,0.00016113,2]
[421001929,1776898243221,-684.82444282,0.00016113,2]
[421001931,1776898243232,-13998.86834645,0.00016113,2]
[421001933,1776898243243,-895.66316871,0.00016113,2]
[421001935,1776898243255,-3980.54937266,0.00016113,2]
[421001938,1776898243267,-27518.18721161,0.00016113,2]
[421001982,1776898245939,-27524.50914761,0.00016113,2]
[421001983,1776898246039,-8616.65914692,0.00016113,2]
[421001984,1776898246094,-14971.62145355,0.00016113,2]
[421001986,1776898298062,359.03,0.00024657,120]
[421001991,1776898427891,1000.0,0.00024,120]
[421002012,1776898459833,2000.0,0.00024,120]
[421002031,1776898843401,-2097.48,7.6e-05,2]
[421002069,1776899202109,-247.1150677,7.411e-05,2]
[421002077,1776899367078,-3132.94685202,7.264e-05,2]
[421002090,1776899431900,-1230.49567203,7.119e-05,2]
[421002092,1776899431910,-5000.0,7.191e-05,2]
[421002094,1776899431919,-150.0,7.301e-05,2]
[421002096,1776899431928,-245.67737944,7.599e-05,2]
[421002099,1776899431952,-954.32262056,7.599e-05,2]
[421002101,1776899431962,-3842.58500105,7.6e-05,2]
[421002144,1776899438868,-11465.28481401,7.6e-05,2]
[421002145,1776899438881,-177.0,9.301e-05,2]
[421002146,1776899438894,-204.0,0.00011301,2]
[421002147,1776899438906,-231.0,0.00013301,2]
[421002148,1776899438919,-156.0,0.00013699,2]
[421002149,1776899438930,-1000.0,0.00013699,2]
[421002150,1776899438943,-1000.0,0.00013796,2]
[421002151,1776899438955,-645.0,0.00014054,2]
[421002152,1776899438967,-555.0,0.00014054,2]
[421002153,1776899438979,-184.0,0.00014054,2]
[421002154,1776899438992,-441.0,0.00014054,2]
[421002155,1776899439004,-500.0,0.00014126,2]
[421002156,1776899439016,-500.0,0.00014126,2]
[421002157,1776899439028,-500.0,0.00014126,2]
[421002158,1776899439040,-500.0,0.00014126,2]
[421002159,1776899439052,-440.15920778,0.00014126,2]
[421002160,1776899439064,-321.04377734,0.00014126,2]
[421002161,1776899439076,-500.0,0.00014126,2]
[421002162,1776899439088,-500.0,0.00014126,2]
[421002163,1776899439100,-500.0,0.00014126,2]
[421002164,1776899439112,-500.0,0.00014126,2]
[421002165,1776899439124,-500.0,0.00014126,2]
[421002166,1776899439136,-500.0,0.00014126,2]
[421002167,1776899439149,-500.0,0.00014126,2]
[421002168,1776899439161,-500.0,0.00014126,2]
[421002169,1776899439173,-500.0,0.00014126,2]
[421002170,1776899439185,-500.0,0.00014126,2]
[421002171,1776899439196,-500.0,0.00014126,2]
[421002172,1776899439207,-500.0,0.00014126,2]
[421002173,1776899439218,-500.0,0.00014126,2]
[421002174,1776899439229,-500.0,0.00014126,2]
[421002175,1776899439241,-500.0,0.00014126,2]
[421002176,1776899439253,-500.0,0.00014126,2]
[421002177,1776899439264,-500.0,0.00014126,2]
[421002178,1776899439275,-500.0,0.00014126,2]
[421002179,1776899439287,-500.0,0.00014126,2]
[421002180,1776899439299,-500.0,0.00014126,2]
[421002181,1776899439310,-500.0,0.00014126,2]
[421002182,1776899439322,-500.0,0.00014126,2]
[421002183,1776899439334,-362.06991656,0.00014126,2]
[421002184,1776899439349,-137.93008344,0.00014126,2]
[421002185,1776899439362,-344.31005268,0.00014126,2]
[421002186,1776899439374,-500.0,0.00014126,2]
[421002187,1776899439385,-500.0,0.00014126,2]
[421002188,1776899439397,-490.05729197,0.00014126,2]
[421002189,1776899439408,-951.56964653,0.00014127,2]
[421002190,1776899439422,-29159.20961013,0.00014127,2]
[421002191,1776899439436,-1122.02269466,0.00014127,2]
[421002192,1776899439451,-424.1750197,0.00014127,2]
[421002193,1776899439465,-263.8249803,0.00014127,2]
[421002194,1776899439479,-1928.00211669,0.00014127,2]
[421002203,1776899440471,-2915.03903928,0.00014127,2]
[421002224,1776899443498,-3874.0301805,0.00013985,2]
[421002225,1776899443627,-1125.9698195,0.00013985,2]
[421002226,1776899443639,-9286.79486142,0.00014127,2]
[421002227,1776899443654,-4574.14783359,0.00014127,2]
[421002231,1776899446358,-901.32254711,0.00014127,2]
[421002232,1776899446372,-6947.26177102,0.00014127,2]
[421002233,1776899446412,-15994.39811296,0.00014127,2]
[421002309,1776900193963,1000.0,0.00024658,120]
[421002509,1776900638702,-1784.99148213,0.0001008,10]
[421002510,1776900638711,-5000.0,0.00010182,10]
[421002511,1776900638721,-300.0,0.00010267,27]
[421002512,1776900638730,-150.0,0.00010337,2]
[421002513,1776900638739,-177.0,0.00012337,2]
[421002514,1776900639016,-300.0,0.00012522,2]
[421002515,1776900639036,-498.04357929,0.00012523,2]
[421002516,1776900639046,-1990.18214283,0.00012523,2]
[421002517,1776900639055,-310.80711762,0.00012523,2]
[421002518,1776900639064,-1241.98524199,0.00012523,2]
[421002519,1776900639074,-160.566907,0.00013178,2]
[421002520,1776900639083,-1585.0,0.000133,2]
[421002521,1776900639092,-1000.0,0.00013699,2]
[421002522,1776900639102,-300.0,0.00013739,2]
[421002523,1776900639111,-500.0,0.00013826,2]
[421002524,1776900639121,-271.12880086,0.00013826,2]
[421002525,1776900639130,-500.0,0.00013826,2]
[421002526,1776900639140,-500.0,0.00013826,2]
[421002527,1776900639149,-500.0,0.00013826,2]
[421002528,1776900639159,-194.6793522,0.00013826,2]
[421002529,1776900639168,-15889.32410333,0.00013827,2]
[421002588,1776900643557,-1736.30493989,0.00013827,2]
[421002590,1776900643569,-4381.22301545,0.00013827,2]
[421002593,1776900643581,-3918.4,0.00013827,2]
[421002601,1776900643655,-91.3949206,0.00013827,2]
[421002604,1776900643670,-4500.1825575,0.00013827,2]
[421002926,1776900646660,-2658.57938517,0.00013688,10]
[421002959,1776900700474,-1198.13247733,0.00013688,10]
[421002962,1776900722513,2000.0,0.00024658,120]
[421002972,1776901150752,11648.125949,0.0002465,120]
[421002974,1776901216826,620.79560064,0.00024535,120]
[421002976,1776901318024,2223.0,0.00024657,120]
[421002979,1776901414302,5000.0,7e-05,10]
[421002987,1776901742576,1010.94576578,0.00024658,120]
[421002989,1776901771677,-4833.0820215,6.231e-05,2]
[421002995,1776901832416,-4809.66046676,6.169e-05,2]
[421002996,1776901832428,-190.33953324,6.169e-05,2]
[421002997,1776901832437,-104.96973335,6.278e-05,2]
[421002998,1776901832469,-45.03026665,6.278e-05,2]
[421002999,1776901832479,-165.9310495,6.357e-05,2]
[421003000,1776901832488,-177.0,8.278e-05,2]
[421003001,1776901832498,-300.0,9.886e-05,21]
[421003002,1776901832507,-300.0,9.886e-05,12]
[421003003,1776901832516,-204.0,0.00010278,2]
[421003004,1776901832526,-231.0,0.00012278,2]
[421003006,1776901832538,-343.83730343,0.00012413,2]
[421003008,1776901832547,-26.50211383,0.00012413,2]
[421003075,1776901838793,-1347.47175068,0.00012413,2]
[421003076,1776901838803,-156.54040046,0.00012413,2]
[421003077,1776901838812,-151.0,0.00013229,2]
[421003078,1776901838822,-455.16681,0.00013229,2]
[421003079,1776901838832,-1200.0,0.00013451,2]
[421003080,1776901838842,-633.083,0.00013452,2]
[421003082,1776901838851,-187.803,0.00013452,2]
[421003083,1776901838861,-500.0,0.00013452,2]
[421003084,1776901838870,-500.0,0.00013452,2]
[421003085,1776901838879,-500.0,0.00013452,2]
[421003086,1776901838889,-500.0,0.00013452,2]
[421003087,1776901838898,-500.0,0.00013452,2]
[421003088,1776901838907,-502.27494036,0.00013452,2]
[421003089,1776901838916,-31030.50751722,0.00013627,2]
[421003090,1776901838926,-90136.38078879,0.00013627,2]
[421003091,1776901838935,-1961.00716602,0.00013627,2]
[421003092,1776901838944,-2007.304335,0.00013699,2]
[421003093,1776901838953,-1000.0,0.00013699,2]
[421003094,1776901838962,-500.0,0.00013725,2]
[421003095,1776901838971,-200.0,0.00013726,2]
[421003096,1776901838980,-160.0,0.00013726,2]
[421003097,1776901838989,-200.0,0.00013726,2]
[421003098,1776901838998,-189.19133525,0.00013726,2]
[421003099,1776901839007,-500.0,0.00013726,2]
[421003100,1776901839016,-500.0,0.00013726,2]
[421003101,1776901839025,-500.0,0.00013726,2]
[421003102,1776901839035,-500.0,0.00013726,2]
[421003103,1776901839044,-500.0,0.00013726,2]
[421003104,1776901839053,-500.0,0.00013726,2]
[421003105,1776901839062,-500.0,0.00013726,2]
[421003106,1776901839071,-500.0,0.00013726,2]
[421003107,1776901839081,-500.0,0.00013726,2]
[421003108,1776901839091,-500.0,0.00013726,2]
[421003109,1776901839100,-500.0,0.00013726,2]
[421003110,1776901839110,-500.0,0.00013726,2]
[421003111,1776901839120,-500.0,0.00013726,2]
[421003112,1776901839129,-500.0,0.00013726,2]
[421003113,1776901839138,-500.0,0.00013726,2]
[421003114,1776901839147,-500.0,0.00013726,2]
[421003115,1776901839157,-500.0,0.00013726,2]
[421003116,1776901839166,-500.0,0.00013726,2]
[421003117,1776901839175,-500.0,0.00013726,2]
[421003118,1776901839184,-500.0,0.00013726,2]
[421003119,1776901839193,-500.0,0.00013726,2]
[421003120,1776901839202,-233.44763247,0.00013726,2]
[421003121,1776901839211,-500.0,0.00013726,2]
[421003122,1776901839220,-500.0,0.00013726,2]
[421003123,1776901839230,-500.0,0.00013726,2]
[421003124,1776901839239,-500.0,0.00013726,2]
[421003125,1776901839249,-500.0,0.00013726,2]
[421003126,1776901839258,-500.0,0.00013726,2]
[421003127,1776901839267,-500.0,0.00013726,2]
[421003128,1776901839277,-500.0,0.00013726,2]
[421003129,1776901839286,-362.52203252,0.00013726,2]
[421003130,1776901839295,-155.0,0.00013726,2]
[421003131,1776901839304,-263.329896,0.00013726,2]
[421003132,1776901839313,-263.329896,0.00013726,2]
[421003133,1776901839323,-263.329896,0.00013726,2]
[421003134,1776901839332,-263.329896,0.00013726,2]
[421003135,1776901839342,-200.0,0.00013726,2]
[421003136,1776901839351,-500.0,0.00013726,2]
[421003137,1776901839360,-151.0,0.00013727,2]
[421003138,1776901839370,-151.0,0.00013727,2]
[421003139,1776901839379,-151.0,0.00013727,2]
[421003140,1776901839388,-212.6132,0.00013727,2]
[421003141,1776901839397,-458.913979,0.00013727,2]
[421003142,1776901839407,-458.913979,0.00013727,2]
[421003143,1776901839416,-458.913979,0.00013727,2]
[421003144,1776901839425,-458.913979,0.00013727,2]
[421003145,1776901839435,-393.96,0.00013727,2]
[421003146,1776901839444,-393.96,0.00013727,2]
[421003147,1776901839453,-393.96,0.00013727,2]
[421003148,1776901839463,-1757.570369,0.00013727,2]
[421003149,1776901839472,-393.96,0.00013727,2]
[421003150,1776901839482,-1757.570369,0.00013727,2]
[421003151,1776901839491,-1757.570369,0.00013727,2]
[421003152,1776901839500,-1757.570369,0.00013727,2]
[421003153,1776901839509,-151.0,0.00013727,2]
[421003154,1776901839518,-151.0,0.00013727,2]
[421003155,1776901839527,-175.536672,0.00013727,2]
[421003156,1776901839536,-175.536672,0.00013727,2]
[421003157,1776901839545,-175.536672,0.00013727,2]
[421003158,1776901839554,-175.536672,0.00013727,2]
[421003159,1776901839563,-151.0,0.00013727,2]
[421003160,1776901839573,-151.0,0.00013727,2]
[421003161,1776901839582,-281.515172,0.00013727,2]
[421003162,1776901839591,-175.536672,0.00013727,2]
[421003163,1776901839600,-175.536672,0.00013727,2]
[421003164,1776901839610,-274.53103,0.00013727,2]
[421003165,1776901839619,-274.53103,0.00013727,2]
[421003166,1776901839629,-274.53103,0.00013727,2]
[421003167,1776901839638,-274.53103,0.00013727,2]
[421003168,1776901839647,-274.53103,0.00013727,2]
[421003169,1776901839656,-274.53103,0.00013727,2]
[421003170,1776901839665,-274.53103,0.00013727,2]
[421003171,1776901839674,-274.53103,0.00013727,2]
[421003172,1776901839684,-175.536672,0.00013727,2]
[421003173,1776901839693,-151.0,0.00013727,2]
[421003174,1776901839703,-175.536672,0.00013727,2]
[421003175,1776901839712,-151.0,0.00013727,2]
[421003176,1776901839721,-151.0,0.00013727,2]
[421003177,1776901839730,-588.297329,0.00013727,2]
[421003178,1776901839739,-588.297329,0.00013727,2]
[421003179,1776901839748,-588.297329,0.00013727,2]
[421003180,1776901839757,-588.297329,0.00013727,2]
[421003181,1776901839766,-588.297329,0.00013727,2]
[421003182,1776901839775,-588.297329,0.00013727,2]
[421003183,1776901839784,-151.0,0.00013727,2]
[421003184,1776901839794,-151.0,0.00013727,2]
[421003185,1776901839803,-588.297329,0.00013727,2]
[421003186,1776901839812,-588.297329,0.00013727,2]
[421003187,1776901839821,-588.297329,0.00013727,2]
[421003188,1776901839833,-588.297329,0.00013727,2]
[421003189,1776901839842,-440.674599,0.00013727,2]
[421003190,1776901839851,-588.297329,0.00013727,2]
[421003191,1776901839860,-440.674599,0.00013727,2]
[421003192,1776901839869,-588.297329,0.00013727,2]
[421003193,1776901839878,-440.674599,0.00013727,2]
[421003194,1776901839887,-440.674599,0.00013727,2]
[421003195,1776901839896,-440.674599,0.00013727,2]
[421003196,1776901839906,-440.674599,0.00013727,2]
[421003197,1776901839914,-440.674599,0.00013727,2]
[421003198,1776901839923,-440.674599,0.00013727,2]
[421003199,1776901839932,-440.674599,0.00013727,2]
[421003200,1776901839942,-440.674599,0.00013727,2]
[421003201,1776901839950,-440.674599,0.00013727,2]
[421003202,1776901839959,-440.674599,0.00013727,2]
[421003203,1776901839968,-967.466982,0.00013727,2]
[421003204,1776901839976,-967.466982,0.00013727,2]
[421003205,1776901839985,-967.466982,0.00013727,2]
[421003206,1776901839994,-967.466982,0.00013727,2]
[421003207,1776901840003,-967.466982,0.00013727,2]
[421003208,1776901840012,-967.466982,0.00013727,2]
[421003209,1776901840021,-967.466982,0.00013727,2]
[421003210,1776901840030,-967.466982,0.00013727,2]
[421003211,1776901840039,-967.466982,0.00013727,2]
[421003212,1776901840048,-967.466982,0.00013727,2]
[421003213,1776901840057,-967.466982,0.00013727,2]
[421003214,1776901840066,-967.466982,0.00013727,2]
[421003215,1776901840075,-918.777945,0.00013727,2]
[421003216,1776901840084,-918.777945,0.00013727,2]
[421003217,1776901840094,-918.777945,0.00013727,2]
[421003218,1776901840103,-918.777945,0.00013727,2]
[421003219,1776901840112,-918.777945,0.00013727,2]
[421003220,1776901840121,-918.777945,0.00013727,2]
[421003221,1776901840130,-918.777945,0.00013727,2]
[421003222,1776901840139,-918.777945,0.00013727,2]
[421003223,1776901840148,-918.777945,0.00013727,2]
[421003224,1776901840157,-918.777945,0.00013727,2]
[421003225,1776901840166,-918.777945,0.00013727,2]
[421003226,1776901840175,-918.777945,0.00013727,2]
[421003227,1776901840184,-918.777945,0.00013727,2]
[421003228,1776901840194,-918.777945,0.00013727,2]
[421003229,1776901840203,-918.777945,0.00013727,2]
[421003230,1776901840212,-918.777945,0.00013727,2]
[421003231,1776901840221,-151.0,0.00013727,2]
[421003232,1776901840231,-151.0,0.00013727,2]
[421003233,1776901840240,-151.0,0.00013727,2]
[421003234,1776901840249,-151.0,0.00013727,2]
[421003235,1776901840259,-216.498428,0.00013727,2]
[421003236,1776901840268,-151.0,0.00013727,2]
[421003237,1776901840277,-151.0,0.00013727,2]
[421003238,1776901840286,-151.0,0.00013727,2]
[421003239,1776901840295,-151.0,0.00013727,2]
[421003240,1776901840304,-151.0,0.00013727,2]
[421003242,1776901840313,-151.0,0.00013727,2]
[421003244,1776901840322,-151.0,0.00013727,2]
[421003246,1776901840331,-151.0,0.00013727,2]
[421003248,1776901840340,-248.606045,0.00013727,2]
[421003250,1776901840350,-492.45,0.00013727,2]
[421003252,1776901840359,-492.45,0.00013727,2]
[421003253,1776901840369,-492.45,0.00013727,2]
[421003254,1776901840378,-492.45,0.00013727,2]
[421003255,1776901840387,-492.45,0.00013727,2]
[421003256,1776901840396,-492.45,0.00013727,2]
[421003257,1776901840406,-492.45,0.00013727,2]
[421003259,1776901840415,-492.45,0.00013727,2]
[421003260,1776901840424,-492.45,0.00013727,2]
[421003261,1776901840433,-492.45,0.00013727,2]
[421003262,1776901840442,-492.45,0.00013727,2]
[421003263,1776901840451,-492.45,0.00013727,2]
[421003264,1776901840461,-492.45,0.00013727,2]
[421003265,1776901840470,-492.45,0.00013727,2]
[421003266,1776901840479,-492.45,0.00013727,2]
[421003267,1776901840488,-492.45,0.00013727,2]
[421003268,1776901840496,-151.0,0.00013727,2]
[421003269,1776901840505,-151.0,0.00013727,2]
[421003270,1776901840515,-151.0,0.00013727,2]
[421003271,1776901840524,-356.464354,0.00013727,2]
[421003272,1776901840533,-356.464354,0.00013727,2]
[421003273,1776901840543,-356.464354,0.00013727,2]
[421003274,1776901840553,-356.464354,0.00013727,2]
[421003275,1776901840562,-356.464354,0.00013727,2]
[421003276,1776901840571,-356.464354,0.00013727,2]
[421003277,1776901840580,-356.464354,0.00013727,2]
[421003278,1776901840589,-356.464354,0.00013727,2]
[421003279,1776901840598,-356.464354,0.00013727,2]
[421003280,1776901840607,-356.464354,0.00013727,2]
[421003281,1776901840617,-356.464354,0.00013727,2]
[421003282,1776901840626,-356.464354,0.00013727,2]
[421003283,1776901840635,-356.464354,0.00013727,2]
[421003284,1776901840644,-356.464354,0.00013727,2]
[421003285,1776901840653,-356.464354,0.00013727,2]
[421003286,1776901840663,-356.464354,0.00013727,2]
[421003287,1776901840673,-151.0,0.00013727,2]
[421003288,1776901840682,-151.0,0.00013727,2]
[421003289,1776901840691,-151.0,0.00013727,2]
[421003290,1776901840700,-151.0,0.00013727,2]
[421003291,1776901840719,-151.0,0.00013727,2]
[421003292,1776901840730,-151.0,0.00013727,2]
[421003293,1776901840739,-157.964682,0.00013727,2]
[421003294,1776901840749,-228.368588,0.00013727,2]
[421003295,1776901840759,-228.368588,0.00013727,2]
[421003296,1776901840769,-228.368588,0.00013727,2]
[421003297,1776901840779,-228.368588,0.00013727,2]
[421003298,1776901840788,-228.368588,0.00013727,2]
[421003299,1776901840797,-228.368588,0.00013727,2]
[421003300,1776901840807,-228.368588,0.00013727,2]
[421003301,1776901840816,-228.368588,0.00013727,2]
[421003302,1776901840827,-228.368588,0.00013727,2]
[421003303,1776901840837,-228.368588,0.00013727,2]
[421003304,1776901840847,-228.368588,0.00013727,2]